bitfinex/quotes_ETHUSD_20220308
["timestamp","ask_amount","ask_price","bid_price","bid_amount"]
[1646718952435,1.52589886,2525.5,2525.1,0.99551316]
[1646718953080,1.52589886,2525.5,2525.1,0.99021]
[1646718953482,1.52589886,2525.5,2525.2,0.00496475]
[1646718954283,1.52589886,2525.5,2525.1,0.99021]
[1646718954683,1.52589886,2525.5,2525.2,0.00496472]
[1646718955483,1.52589886,2525.5,2525.1,0.99021]
[1646718955883,1.52589886,2525.5,2525.2,0.00496472]
[1646718956846,7.15112,2525.9,2525.3,0.99013]
[1646718956847,1.1706,2525.9,2525.3,0.99013]
[1646718957033,6.75739,2526.4,2525.3,0.99013]
[1646718957034,0.19970587,2526.2,2525.3,0.99013]
[1646718957234,0.1978,2526.2,2525.3,0.99013]
[1646718957635,0.39670587,2526.3,2525.3,0.99013]
[1646718957837,1.57937339,2526.1,2525.4,1.00714399]
[1646718958236,1.57937339,2526.1,2525.6,0.00484409]
[1646718958838,1.18457339,2526.1,2525.6,0.00484409]
[1646718959236,1.18457339,2526.1,2525.5,0.99004]
[1646718959438,1.18457339,2526.1,2525.7,0.00484412]
[1646718960337,1.18457339,2526.1,2525.4,1.00714399]
[1646718961390,2.17473339,2526.1,2525.4,1.00714399]
[1646718961988,2.17473339,2526.1,2525.3,0.9901]
[1646718962187,2.17473339,2526.1,2525.1,4.52356]
[1646718963189,2.17473339,2526.1,2525.2,1.12109842]
[1646718963190,3.16492339,2526.1,2525.2,1.12109842]
[1646718963590,3.16492339,2526.1,2525.3,0.08064683]
[1646718963992,2.74941541,2526.1,2525.3,0.08064683]
[1646718964344,2.74941541,2526.1,2525.5,0.00499307]
[1646718964538,2.74941541,2526.1,2525.6,0.08064683]
[1646718965035,1.18457339,2526.1,2525.6,0.08064683]
[1646718965335,1.18457339,2526.1,2525.7,0.00504932]
[1646718965536,1.18457339,2526.1,2525.8,0.08064683]
[1646718966538,1.18457339,2526.1,2525.7,0.00504945]
[1646718966736,1.18457339,2526.1,2525.8,0.08064335]
[1646718967741,1.18457339,2526.1,2525.9,0.08064335]
[1646718967940,1.18457339,2526.1,2525.7,0.00504945]
[1646718968182,1.18457339,2526.1,2525.8,0.08064321]
[1646718968380,12.4814393,2526.4,2525.8,0.08064321]
[1646718968381,6.5109016,2526.4,2525.8,0.08064321]
[1646718968581,6.3131016,2526.4,2525.8,0.08064321]
[1646718968782,6.6131016,2526.4,2525.8,0.08064321]
[1646718968980,6.6131016,2526.4,2525.9,0.08064321]
[1646718969183,6.6131016,2526.4,2526.0,0.08064321]
[1646718969381,1.1376097,2526.1,2525.7,0.00483105]
[1646718969581,1.1376097,2526.1,2525.8,0.0806454]
[1646718969782,1.4376097,2526.1,2525.8,0.0806454]
[1646718969982,0.3948,2526.0,2525.8,0.0806454]
[1646718970185,0.3948,2526.0,2525.7,0.00483086]
[1646718970382,0.3948,2526.0,2525.8,0.08064957]
[1646718971383,0.3948,2526.0,2525.7,0.0048308]
[1646718971857,0.3948,2526.0,2525.8,0.08065106]
[1646718972248,6.9000747,2526.1,2525.8,0.08065106]
[1646718972448,2.3293097,2526.1,2525.8,0.08065106]
[1646718972647,2.3293097,2526.1,2525.2,4.21928176]
[1646718972648,2.3293097,2526.1,2525.9,0.08065106]
[1646718972849,2.3293097,2526.1,2526.0,0.08065106]
[1646718973049,2.3293097,2526.1,2525.8,0.08065106]
[1646718973850,2.3293097,2526.1,2525.9,0.08065106]
[1646718974048,1.3948,2526.3,2526.0,0.08065106]
[1646718974249,1.3948,2526.3,2525.7,0.00473392]
[1646718974250,0.3,2526.3,2526.1,0.08065106]
[1646718974452,0.3,2526.3,2526.2,0.08065106]
[1646718974653,4.0969,2526.4,2526.2,0.08065106]
[1646718974949,4.0969,2526.4,2525.4,1.70934176]
[1646718975149,1.21736923,2526.0,2525.7,0.00473423]
[1646718975351,1.21736923,2526.0,2525.8,0.08064223]
[1646718975897,1.61216923,2526.0,2525.8,0.08064223]
[1646718976398,1.91216923,2526.0,2525.9,0.08064223]
[1646718976598,1.91216923,2526.0,2525.8,0.08064223]
[1646718977503,1.91216923,2526.0,2525.9,0.08064223]
[1646718977703,1.91216923,2526.0,2525.7,0.00474262]
[1646718977704,1.91216923,2526.0,2525.8,0.08064223]
[1646718978303,4.91216923,2526.0,2525.8,0.08064223]
[1646718978503,4.91216923,2526.0,2525.1,0.71928176]
[1646718978504,0.3948,2525.8,2525.1,0.71928176]
[1646718978705,0.3948,2525.9,2525.7,0.00474262]
[1646718978906,5.51736923,2526.0,2525.8,0.0806539]
[1646718979204,1.55896213,2525.9,2525.8,0.0806539]
[1646718980134,5.51736923,2526.0,2525.8,0.0806539]
[1646718980338,1.56161412,2525.9,2525.8,0.0806539]
[1646718980935,0.3948,2525.8,2525.3,0.71928176]
[1646718981235,5.51736923,2526.0,2525.7,0.00474158]
[1646718981437,1.56168064,2525.9,2525.8,0.08065126]
[1646718983484,1.56168064,2525.9,2525.7,0.00474171]
[1646718983784,1.56168064,2525.9,2525.8,0.08065126]
[1646718984584,1.56168064,2525.9,2525.7,0.00474171]
[1646718984787,1.56168064,2525.9,2525.8,0.08065126]
[1646718985787,1.95648064,2525.9,2525.7,0.00474171]
[1646718985985,5.51736923,2526.0,2525.8,0.08065143]
[1646718986185,1.56239695,2525.9,2525.8,0.08065143]
[1646718987038,1.95719695,2525.9,2525.7,0.0047417]
[1646718987238,1.3851027,2525.9,2525.8,0.08065219]
[1646718987441,2.94811872,2525.9,2525.8,0.08065219]
[1646718988043,6.84901111,2525.9,2525.8,0.08065219]
[1646718988241,7.34001111,2525.9,2525.8,0.08065725]
[1646718988439,9.47650111,2525.9,2525.7,0.0047417]
[1646718988639,0.00451963,2525.6,2525.1,0.71928176]
[1646718988840,1.3852634,2525.5,2525.1,0.71928176]
[1646718990689,1.39931963,2525.6,2525.2,0.00474551]
[1646718990891,1.39931963,2525.6,2525.2,0.72402727]
[1646718991088,0.00451963,2525.6,2525.3,0.71928176]
[1646718991492,0.00451963,2525.6,2525.5,1.10370973]
[1646718992699,0.00451963,2525.6,2525.5,1.82299149]
[1646718994938,0.00451963,2525.6,2525.5,0.71928176]
[1646718995139,0.00451963,2525.6,2525.3,0.71928176]
[1646718995347,0.30451963,2525.6,2525.1,0.71928176]
[1646718995540,0.30451963,2525.6,2525.4,0.00474147]
[1646718996343,0.30451963,2525.6,2525.2,1.14212748]
[1646718996740,0.30451963,2525.6,2525.4,0.0047415]
[1646718997545,0.30451963,2525.6,2525.2,1.86140924]
[1646718997947,0.30451963,2525.6,2525.4,0.00474397]
[1646718998887,0.30451963,2525.6,2525.2,0.71928176]
[1646718999088,0.30451963,2525.6,2525.4,0.00474397]
[1646718999993,0.30451963,2525.6,2525.1,0.71928176]
[1646719000196,0.30451963,2525.6,2525.4,0.00474397]
[1646719001196,0.30451963,2525.6,2525.1,1.74300083]
[1646719001394,0.30451963,2525.6,2525.4,0.00474165]
[1646719002041,0.00451963,2525.6,2525.4,0.00474165]
[1646719002442,0.00451963,2525.6,2525.3,0.71928176]
[1646719002646,0.00451963,2525.6,2525.4,0.72402341]
[1646719003642,0.00451963,2525.6,2525.4,0.71928176]
[1646719003843,0.00451963,2525.6,2525.4,0.00474165]
[1646719004043,0.00451963,2525.6,2525.4,0.72402341]
[1646719004944,0.00451963,2525.6,2525.4,0.71928176]
[1646719005146,0.00451963,2525.6,2525.4,0.72402341]
[1646719005985,0.00451963,2525.6,2525.4,0.71928176]
[1646719006187,0.00451963,2525.6,2525.4,0.72402365]
[1646719007191,0.00451963,2525.6,2525.4,0.71928176]
[1646719007391,0.00451963,2525.6,2525.4,0.72402365]
[1646719008393,0.00451963,2525.6,2525.4,0.71928176]
[1646719008591,0.00451963,2525.6,2525.4,0.72402365]
[1646719009639,0.00451963,2525.6,2525.4,0.71928176]
[1646719009842,0.00451963,2525.6,2525.4,0.72402362]
[1646719010740,0.00451963,2525.6,2525.4,0.71928176]
[1646719011140,0.00451963,2525.6,2525.4,0.72402362]
[1646719012045,0.00451963,2525.6,2525.4,0.71928176]
[1646719012246,0.00302227,2525.6,2525.5,0.79992839]
[1646719012446,0.00302227,2525.6,2525.5,0.71928176]
[1646719019453,0.00302227,2525.6,2525.5,0.79992839]
[1646719019950,0.00302227,2525.6,2525.5,0.71928176]
[1646719020149,0.00302227,2525.6,2525.2,1.04782791]
[1646719020348,0.00302227,2525.6,2525.2,0.99782791]
[1646719021195,0.00302227,2525.6,2525.0,0.86464025]
[1646719023599,0.00302227,2525.6,2525.1,1.14448656]
[1646719024451,0.00302227,2525.6,2525.2,0.00530088]
[1646719025250,0.00302227,2525.6,2525.1,1.14448656]
[1646719025251,0.00302227,2525.6,2525.1,2.13465666]
[1646719025451,0.00302227,2525.6,2525.3,0.00530084]
[1646719026457,0.00302227,2525.6,2525.1,1.14448656]
[1646719026653,0.00302227,2525.6,2525.3,0.00530091]
[1646719027661,0.00302227,2525.6,2525.0,1.85488025]
[1646719027862,0.00302227,2525.6,2525.3,0.00530091]
[1646719028895,0.00302227,2525.6,2525.1,1.16316291]
[1646719029096,0.00302227,2525.6,2525.3,0.00514188]
[1646719030099,0.00302227,2525.6,2525.2,0.96595302]
[1646719030297,0.00302227,2525.6,2525.3,0.00514188]
[1646719031302,0.00302227,2525.6,2525.2,0.96595302]
[1646719031499,0.00302227,2525.6,2525.3,0.00514188]
[1646719032347,0.00302227,2525.6,2525.2,0.96595302]
[1646719032748,0.00302227,2525.6,2525.3,0.00503106]
[1646719033347,0.00302227,2525.6,2525.3,0.97098408]
[1646719033548,0.00302227,2525.6,2525.3,1.26595302]
[1646719033953,0.00302227,2525.6,2525.3,1.27098408]
[1646719034352,0.00302227,2525.6,2525.4,1.95603302]
[1646719034550,0.00302227,2525.6,2525.4,1.84177775]
[1646719034949,0.00302227,2525.6,2525.3,2.25607122]
[1646719035151,0.00302227,2525.6,2525.3,0.97098414]
[1646719036091,0.00302227,2525.6,2525.3,0.96595302]
[1646719036291,0.00302227,2525.6,2525.3,0.9709905]
[1646719037298,0.00302227,2525.6,2525.3,0.96595302]
[1646719037498,0.00302227,2525.6,2525.3,0.9709905]
[1646719038499,0.00302227,2525.6,2525.3,0.96595302]
[1646719038700,1.87748511,2526.1,2525.3,0.00503748]
[1646719038898,1.87748511,2526.1,2525.3,0.9709905]
[1646719039543,1.87748511,2526.1,2525.3,0.96595302]
[1646719039941,1.87748511,2526.1,2525.3,0.97099044]
[1646719040142,1.61296519,2526.0,2525.3,0.00503742]
[1646719040740,1.61296519,2526.0,2525.2,0.96595302]
[1646719040942,1.19687668,2525.7,2525.1,0.96595302]
[1646719041243,1.61296519,2525.6,2525.3,0.00503735]
[1646719042048,1.61296519,2525.6,2525.2,0.96595302]
[1646719042245,1.61296519,2525.6,2525.1,0.96595302]
[1646719042246,5.11296519,2525.6,2525.1,0.96595302]
[1646719042446,1.61296519,2525.5,2525.3,0.00503708]
[1646719042646,2.49687668,2525.7,2525.3,0.00503708]
[1646719042845,1.61298694,2525.6,2525.3,0.00503708]
[1646719043292,1.61298694,2525.6,2525.1,0.96595302]
[1646719043491,5.11298694,2525.6,2525.3,0.0050371]
[1646719043691,1.61298694,2525.5,2525.3,0.0050371]
[1646719044392,1.61298694,2525.5,2525.1,0.96595302]
[1646719044594,1.61298694,2525.5,2525.3,0.00503703]
[1646719045594,1.61298694,2525.5,2525.1,0.96595302]
[1646719045795,1.61298694,2525.5,2525.0,0.96595302]
[1646719045994,1.61298694,2525.5,2525.3,0.00503703]
[1646719046849,1.61298694,2525.5,2525.1,0.96595302]
[1646719047043,1.61298694,2525.5,2525.3,0.00503704]
[1646719047945,1.61298694,2525.5,2525.1,0.96595302]
[1646719048346,1.61298694,2525.5,2525.3,0.00503704]
[1646719049347,1.61298694,2525.5,2525.0,1.95619302]
[1646719049646,1.61298694,2525.5,2525.3,0.00503704]
[1646719050249,1.0,2525.7,2525.3,0.00503704]
[1646719050447,1.61304916,2525.6,2525.1,0.96595302]
[1646719050699,1.61304916,2525.5,2525.3,0.00503704]
[1646719050900,2.139,2525.9,2525.3,0.00503704]
[1646719051101,1.61299408,2525.8,2525.3,0.00503704]
[1646719051700,1.61299408,2525.8,2525.4,0.87246908]
[1646719051905,1.61299408,2525.8,2525.4,2.84905908]
[1646719052103,1.61299408,2525.8,2525.4,4.1150121]
[1646719053304,1.61299408,2525.8,2525.4,3.1249221]
[1646719053703,1.61299408,2525.8,2525.4,2.15896908]
[1646719053904,1.61299408,2525.8,2525.4,3.1249221]
[1646719054103,1.61299408,2525.8,2525.4,2.15896908]
[1646719054545,1.61299408,2525.8,2525.4,2.25245302]
[1646719054946,1.61299408,2525.8,2525.3,1.2266254]
[1646719055147,1.61299408,2525.8,2525.3,0.96595302]
[1646719055546,1.61299408,2525.8,2525.3,0.9675254]
[1646719056446,1.61299408,2525.8,2525.3,0.96595302]
[1646719056646,1.61299408,2525.8,2525.3,0.9675254]
[1646719057653,1.61299408,2525.8,2525.3,0.96595302]
[1646719058094,1.61299408,2525.7,2525.3,0.97115106]
[1646719058293,5.62607548,2526.2,2525.3,0.97115106]
[1646719058494,1.61298533,2526.1,2525.3,1.96125106]
[1646719058696,3.5,2526.0,2525.3,1.96125106]
[1646719058995,1.61298533,2525.9,2525.3,1.95605302]
[1646719059297,1.61298533,2525.8,2525.3,1.96125133]
[1646719059494,1.61298533,2525.7,2525.3,1.96125133]
[1646719059695,5.62607548,2526.2,2525.3,1.96125133]
[1646719059895,1.61297859,2526.1,2525.3,1.96125133]
[1646719060197,1.61297859,2526.1,2525.3,1.95605302]
[1646719060394,1.61297859,2526.1,2525.3,1.96125099]
[1646719060896,3.5,2526.0,2525.3,1.96125099]
[1646719061096,1.61297859,2525.9,2525.3,1.96125099]
[1646719061297,1.61297859,2525.9,2525.3,1.95605302]
[1646719061496,1.61297859,2525.9,2525.3,1.96125053]
[1646719062151,1.61297859,2525.8,2525.3,1.96125053]
[1646719062350,1.61297019,2525.7,2525.3,1.95605302]
[1646719062550,5.62607548,2526.2,2525.3,1.95605302]
[1646719062754,1.61295957,2526.1,2525.3,1.96108217]
[1646719063551,3.5,2526.0,2525.3,1.96108217]
[1646719063755,1.61295957,2525.9,2525.3,1.95605302]
[1646719063951,1.61295957,2525.9,2525.3,1.9610823]
[1646719064152,1.61295957,2526.1,2525.3,1.9610823]
[1646719064452,1.61295957,2526.0,2525.3,1.9610823]
[1646719064653,1.61295957,2525.9,2525.3,1.9610823]
[1646719064854,1.61295957,2525.8,2525.3,1.95605302]
[1646719065054,1.61295957,2525.7,2525.3,1.96108595]
[1646719065256,5.62607548,2526.2,2525.3,1.96108595]
[1646719065454,1.61296578,2526.1,2525.3,1.96108595]
[1646719065695,3.5,2526.0,2525.3,1.96108595]
[1646719065896,1.61296578,2525.9,2525.4,0.96595302]
[1646719066096,1.61296578,2525.8,2525.4,0.96595302]
[1646719066296,5.62607548,2526.2,2525.4,0.96595302]
[1646719066498,1.61292027,2526.1,2525.4,0.96595302]
[1646719066902,1.61292027,2526.1,2525.3,1.96109921]
[1646719067300,1.61292027,2526.1,2525.3,1.95605302]
[1646719067502,1.61292027,2526.1,2525.3,1.96109927]
[1646719068503,1.61292027,2526.1,2525.3,1.95605302]
[1646719068704,3.5,2526.0,2525.3,1.96119996]
[1646719068903,1.61292027,2525.9,2525.3,1.96119996]
[1646719069104,1.61292027,2525.9,2525.3,0.99524694]
[1646719069354,1.61292027,2525.9,2525.3,0.00514694]
[1646719069355,3.89388517,2525.8,2525.3,0.00514694]
[1646719069550,1.61292027,2525.7,2525.3,0.00514694]
[1646719069751,3.5,2525.6,2525.1,1.1326]
[1646719069950,1.61292027,2525.5,2525.3,0.00530184]
[1646719070160,4.40216081,2525.4,2525.3,0.00530184]
[1646719070351,6.01508108,2525.4,2525.3,0.00530184]
[1646719070560,7.01508108,2525.4,2525.3,0.00530184]
[1646719071051,3.51508108,2525.4,2524.8,0.96595302]
[1646719071250,5.11292027,2525.3,2525.2,0.0053016]
[1646719071453,1.61292027,2525.3,2525.2,0.0053016]
[1646719072054,1.61292027,2525.3,2524.8,0.96595302]
[1646719072253,1.61292027,2525.3,2525.1,0.00530398]
[1646719073294,1.61292027,2525.3,2524.8,1.26595302]
[1646719073495,1.61292027,2525.3,2525.1,0.00530401]
[1646719074498,0.90216081,2525.4,2524.8,1.26595302]
[1646719074695,0.90216081,2525.4,2525.1,0.00530401]
[1646719075296,2.63511,2525.7,2525.1,0.00530401]
[1646719075297,1.2499,2525.7,2525.1,0.00530401]
[1646719075497,1.61310956,2525.6,2525.1,0.00530401]
[1646719075700,1.61310956,2525.6,2525.0,2.07715302]
[1646719076102,1.61310956,2525.6,2525.1,0.97108197]
[1646719076504,1.61310956,2525.6,2525.2,0.88791288]
[1646719076702,1.61310956,2525.8,2525.2,0.88791288]
[1646719076948,1.61300673,2525.7,2525.2,0.88791288]
[1646719077152,1.61300673,2525.6,2525.2,1.88319176]
[1646719077348,1.3772,2526.2,2525.2,1.42564176]
[1646719077550,0.7410408,2526.3,2525.3,1.95608302]
[1646719077551,1.61287137,2526.1,2525.3,1.95608302]
[1646719077747,1.61287137,2526.2,2525.3,1.95608302]
[1646719077950,1.61287137,2526.2,2525.4,0.96595302]
[1646719078354,1.61287137,2526.1,2525.6,0.86552717]
[1646719078549,1.61287137,2526.0,2525.6,0.86552717]
[1646719078748,0.02050856,2526.3,2525.6,0.86552717]
[1646719078948,1.61282703,2526.2,2525.6,0.86552717]
[1646719079350,1.61282703,2526.2,2525.7,0.989949]
[1646719079550,5.97760846,2526.4,2525.6,0.98998]
[1646719079551,1.61282703,2526.1,2525.6,0.98998]
[1646719079850,1.61282703,2526.0,2525.6,0.98998]
[1646719080050,1.2207,2526.3,2525.6,0.98998]
[1646719080251,1.61279832,2526.2,2525.6,0.98998]
[1646719080454,1.61279832,2526.2,2525.6,1.9799625]
[1646719080896,1.61279832,2526.2,2525.7,0.9393664]
[1646719081094,1.61279832,2526.2,2525.7,1.9293064]
[1646719081499,0.61268427,2526.5,2525.7,1.9293064]
[1646719081698,1.61271512,2526.4,2525.7,1.9293064]
[1646719083503,1.61271512,2526.4,2525.8,0.9899346]
[1646719083899,1.61271512,2526.4,2525.9,0.98991]
[1646719084201,0.0018936,2526.8,2526.2,0.88992104]
[1646719084451,0.02515859,2526.6,2526.2,2.01252104]
[1646719084649,0.02515859,2526.6,2526.4,18.643795]
[1646719085051,0.02515859,2526.6,2526.5,0.98963]
[1646719085251,0.0018936,2527.2,2526.5,0.99109227]
[1646719085451,0.0018936,2527.2,2526.7,1.06939323]
[1646719085452,1.61230913,2527.2,2526.7,1.06939323]
[1646719085651,0.02012591,2527.0,2526.7,1.06939323]
[1646719085851,0.02012591,2527.0,2526.7,0.3]
[1646719086451,1.61236439,2526.9,2526.8,1.9791171]
[1646719086851,0.00503133,2527.0,2526.8,1.9769621]
[1646719087053,1.61236439,2526.9,2526.8,1.9769621]
[1646719087453,0.00503133,2527.0,2526.8,1.9769621]
[1646719087753,4.99247319,2527.5,2526.8,1.9769621]
[1646719087953,0.00503133,2527.0,2526.8,1.9769621]
[1646719088197,1.61236735,2526.9,2526.8,1.9769621]
[1646719088396,0.00503133,2527.0,2526.8,1.9769621]
[1646719088601,0.00503133,2527.0,2526.8,2.8733621]
[1646719088797,0.00503133,2527.0,2526.8,3.1733621]
[1646719088999,0.0018936,2527.5,2526.8,3.1733621]
[1646719089200,0.0050313,2527.0,2526.8,2.8733621]
[1646719090203,1.09133232,2527.5,2526.8,2.8733621]
[1646719090402,7.99653416,2527.7,2526.8,2.8733621]
[1646719090403,0.0050313,2527.0,2526.8,2.8733621]
[1646719091408,0.88077374,2527.4,2526.8,2.8733621]
[1646719091603,0.0050313,2527.0,2526.8,1.88596]
[1646719091856,0.0050313,2527.0,2526.8,0.98956]
[1646719092453,0.88077374,2527.4,2526.8,0.98956]
[1646719092654,1.61235068,2527.3,2526.8,0.98956]
[1646719092855,1.61235068,2527.3,2526.7,2.2789993]
[1646719092856,0.0050313,2527.0,2526.7,2.2789993]
[1646719093453,0.0050313,2527.0,2526.7,1.9789993]
[1646719093654,0.88077374,2527.4,2526.7,1.9789993]
[1646719093957,0.0050317,2527.0,2526.7,1.9789993]
[1646719094355,0.0050317,2527.0,2526.8,0.98956]
[1646719094956,0.88077374,2527.4,2526.8,0.98956]
[1646719095156,0.00503167,2527.0,2526.8,0.98956]
[1646719097298,4.38077374,2527.4,2526.8,0.98956]
[1646719097499,0.00503127,2527.0,2526.9,0.9895435]
[1646719098099,0.00503127,2527.0,2526.9,1.2895435]
[1646719098501,0.00188436,2527.5,2526.9,1.2895435]
[1646719098702,0.00503124,2527.1,2526.9,1.2895435]
[1646719099104,0.00503124,2527.1,2526.9,1.5895435]
[1646719099357,0.00503124,2527.1,2527.0,0.3]
[1646719099848,1.05242005,2527.5,2527.0,0.3]
[1646719100048,0.00503121,2527.1,2527.0,0.3]
[1646719100250,0.00503121,2527.1,2526.9,1.2895435]
[1646719100951,1.05242005,2527.5,2526.9,1.2895435]
[1646719101150,0.00503123,2527.1,2526.9,1.2895435]
[1646719102152,3.50188436,2527.6,2527.0,0.3]
[1646719102452,3.579,2527.7,2527.0,0.3]
[1646719102453,0.00503123,2527.1,2527.0,0.3]
[1646719103095,0.00503123,2527.1,2526.9,1.2895435]
[1646719103295,3.50188436,2527.6,2526.9,1.2895435]
[1646719103499,4.61420965,2527.7,2526.9,1.2895435]
[1646719103696,0.0050312,2527.2,2526.9,1.2895435]
[1646719104096,0.0050312,2527.2,2526.9,0.3]
[1646719104298,0.0050312,2527.2,2526.8,1.28955]
[1646719104497,3.52012177,2527.6,2526.8,1.28955]
[1646719104498,3.50188436,2527.6,2526.8,1.28955]
[1646719104698,0.00503119,2527.2,2526.8,1.28955]
[1646719105698,3.50188436,2527.6,2526.8,1.28955]
[1646719105918,0.00503123,2527.1,2526.8,1.28955]
[1646719106101,0.00503123,2527.1,2526.8,2.2790933]
[1646719106300,0.00503123,2527.1,2526.8,2.5790933]
[1646719106976,0.00188436,2527.5,2526.8,2.5790933]
[1646719107176,0.00503126,2527.1,2527.0,1.08157919]
[1646719107773,0.00503126,2527.1,2526.8,2.5790933]
[1646719108071,3.50188436,2527.6,2526.8,2.5790933]
[1646719108273,0.0050312,2527.2,2526.8,1.58955]
[1646719108674,0.0050312,2527.2,2526.8,1.28955]
[1646719108874,0.0050312,2527.2,2526.8,0.3]
[1646719109075,0.0050312,2527.2,2526.7,2.2789993]
[1646719109274,3.52200612,2527.6,2526.7,2.9685693]
[1646719109275,0.93758744,2527.3,2526.7,2.9685693]
[1646719109478,0.00503123,2527.1,2526.7,1.9789993]
[1646719110477,0.93758744,2527.3,2526.7,1.9789993]
[1646719110694,0.00503129,2527.0,2526.7,1.9789993]
[1646719111298,0.00362147,2527.0,2526.7,1.9789993]
[1646719111699,1.61234415,2527.2,2526.7,1.9789993]
[1646719112999,1.0,2527.3,2526.8,0.98957]
[1646719113198,0.00347037,2527.1,2526.8,0.98957]
[1646719113600,0.00347037,2527.1,2526.8,0.93957]
[1646719113799,0.00347037,2527.1,2526.8,3.11586466]
[1646719113999,0.97158515,2527.4,2526.8,3.11586466]
[1646719114198,1.38648436,2527.7,2526.8,4.36946466]
[1646719114448,0.00347037,2527.1,2526.9,0.98949]
[1646719115251,1.11918662,2527.5,2526.9,0.98949]
[1646719115451,1.11918662,2527.5,2526.8,3.42989466]
[1646719115452,1.11918662,2527.5,2526.8,0.6]
[1646719115656,0.00530325,2527.1,2526.8,0.6]
[1646719115853,0.00530325,2527.1,2526.8,0.3]
[1646719116153,0.00530325,2527.1,2526.6,2.2384253]
[1646719116573,1.18555221,2527.1,2526.6,2.2384253]
[1646719116759,0.00530336,2527.0,2526.6,0.9896253]
[1646719117559,0.00530336,2527.0,2526.5,2.97025227]
[1646719117959,3.5,2527.0,2526.5,2.97025227]
[1646719118199,1.6177084,2526.9,2526.5,2.97025227]
[1646719118398,1.6177084,2526.9,2526.5,3.27025227]
[1646719118399,0.0053034,2526.9,2526.5,3.27025227]
[1646719118598,0.0053034,2526.9,2526.5,1.29109227]
[1646719118999,1.18555221,2527.1,2526.5,1.29109227]
[1646719119198,0.00530347,2526.8,2526.5,0.99109227]
[1646719120199,1.18555221,2527.1,2526.5,1.29109227]
[1646719120400,0.00512451,2526.8,2526.5,0.99109227]
[1646719120603,0.00512451,2526.8,2526.5,0.3]
[1646719121007,0.00512451,2526.8,2526.3,1.515]
[1646719121407,1.61231527,2526.7,2526.3,1.515]
[1646719121606,1.61231527,2526.6,2526.2,2.57921]
[1646719122250,1.61231527,2526.6,2526.2,0.6]
[1646719122650,1.61231527,2526.6,2526.1,0.3]
[1646719123250,1.61231527,2526.6,2526.1,1.28984]
[1646719123449,1.61231527,2526.5,2526.1,2.2796313]
[1646719123650,4.6789,2527.0,2526.1,2.5796313]
[1646719123850,1.61241599,2526.9,2526.1,2.5796313]
[1646719124050,3.5,2526.8,2526.1,2.5796313]
[1646719124249,1.61241599,2526.7,2526.1,2.5796313]
[1646719124449,1.61241599,2526.7,2526.3,0.98976]
[1646719125250,0.00519535,2526.6,2526.3,0.98976]
[1646719125450,1.61241599,2526.5,2526.3,0.98976]
[1646719126001,1.61241599,2526.5,2526.3,1.979506]
[1646719126499,0.00519535,2526.6,2526.3,2.279506]
[1646719126700,1.61246866,2526.5,2526.3,2.279506]
[1646719126902,1.61246866,2526.5,2526.1,0.98982]
[1646719127104,1.61246866,2526.5,2525.8,1.1749]
[1646719127503,1.61246866,2526.4,2525.8,1.1749]
[1646719127706,1.61246866,2526.3,2525.8,1.1749]
[1646719127904,0.00502526,2526.6,2525.7,1.11160939]
[1646719128105,1.61258132,2526.5,2525.7,1.11160939]
[1646719128504,1.19803995,2526.3,2525.7,1.11160939]
[1646719128704,1.19803995,2526.3,2525.7,0.03062175]
[1646719130351,1.19803995,2526.3,2525.7,1.02060175]
[1646719131350,1.19803995,2526.3,2525.7,2.01059675]
[1646719132152,1.19803995,2526.3,2525.7,2.22571898]
[1646719133599,0.0201458,2526.5,2525.7,2.22571898]
[1646719133799,0.0201458,2526.5,2525.7,2.52571898]
[1646719133800,1.61268391,2526.4,2525.7,2.52571898]
[1646719134003,1.61268391,2526.4,2525.9,0.98975]
[1646719134403,0.0201458,2526.5,2525.9,0.98975]
[1646719134604,1.2185,2526.6,2525.9,1.28975]
[1646719134804,1.2185,2526.6,2525.9,0.3]
[1646719134805,1.22353578,2526.6,2525.9,0.3]
[1646719135006,1.22353578,2526.6,2526.0,1.97953]
[1646719135204,1.22353578,2526.6,2526.1,0.9897874]
[1646719135205,0.00503578,2526.6,2526.1,0.9897874]
[1646719135405,0.00503578,2526.6,2526.1,1.9795674]
[1646719135609,0.00503578,2526.6,2526.1,0.3]
[1646719135809,3.3354,2526.9,2526.1,0.3]
[1646719136006,3.3354,2526.9,2526.1,1.26595302]
[1646719136205,0.00503605,2526.6,2526.2,3.15797614]
[1646719136407,0.00503605,2526.6,2526.3,0.98965]
[1646719136954,4.70888436,2527.2,2526.3,1.96295]
[1646719137255,0.00503616,2526.6,2526.3,3.76964]
[1646719137458,0.00503616,2526.6,2526.4,1.97922]
[1646719137654,0.00386832,2526.6,2526.4,2.27922]
[1646719137854,0.00386832,2526.6,2526.4,3.2688721]
[1646719138255,0.00188436,2527.1,2526.7,1.15477549]
[1646719138456,2.81925131,2527.2,2526.7,1.15477549]
[1646719138754,1.61225131,2527.1,2526.7,1.15477549]
[1646719139157,1.61225131,2527.1,2526.7,0.3]
[1646719139355,1.61225131,2527.1,2526.7,1.28953]
[1646719139554,1.61225131,2527.1,2526.7,0.3]
[1646719140156,1.61225131,2527.1,2526.6,1.97906]
[1646719140157,1.61225131,2527.1,2526.6,2.27906]
[1646719140901,0.00347288,2527.0,2526.6,2.27906]
[1646719141295,0.00347288,2527.0,2526.6,2.67386]
[1646719141497,7.288e-05,2527.0,2526.7,0.9895]
[1646719141697,2.5007,2527.9,2526.7,2.1954]
[1646719141698,0.00188436,2527.6,2526.7,2.1954]
[1646719141899,1.61390264,2527.8,2526.7,2.1954]
[1646719142101,1.61201828,2527.7,2526.9,3.33909302]
[1646719142300,2.476e-05,2527.3,2527.1,2.55961145]
[1646719142500,2.476e-05,2527.3,2527.1,2.37315]
[1646719142701,2.476e-05,2527.3,2527.1,4.36231]
[1646719142900,2.476e-05,2527.3,2527.1,3.66231]
[1646719143199,1.61182043,2527.8,2527.5,0.3948]
[1646719143403,0.00188436,2528.3,2527.6,1.1129711]
[1646719143404,1.61182043,2528.3,2527.6,1.1129711]
[1646719143600,1.61182043,2528.2,2527.6,1.1129711]
[1646719143801,1.61182043,2528.1,2527.6,2.1019211]
[1646719144001,1.61182043,2528.0,2527.6,2.1019211]
[1646719144448,1.61370479,2528.5,2527.7,1.9778945]
[1646719144648,5.86241887,2528.6,2527.7,3.9560945]
[1646719144852,5.86241887,2528.6,2527.8,0.3]
[1646719144853,1.61169019,2528.4,2527.8,0.3]
[1646719145053,1.56169019,2528.5,2527.8,0.3]
[1646719145254,5.34135303,2528.6,2527.8,0.3]
[1646719145453,5.34135303,2528.6,2528.0,0.9891]
[1646719145654,0.73008721,2527.9,2527.8,0.3]
[1646719145854,0.00530749,2528.2,2527.8,5.8]
[1646719146061,0.00530749,2528.2,2527.8,8.72583619]
[1646719146263,0.00530749,2528.2,2527.9,2.96678]
[1646719146655,0.0278142,2528.8,2527.9,3.96678]